[Event "The Kvibergspelen 2024"]
[Site "Kviberg Park Hotel & Conference, Krutvagen 2, Gothenburg, Sweden"]
[Date "2024.09.06"]
[Round "3.2"]
[White "Sorensen, Hampus"]
[Black "Ask, Josef"]
[Result "1-0"]
[TimeControl "15 minutes + 5 seconds per move from move one (Round 1 - 4) / 90 minutes + 30 seconds per move from move one (Round 5 - 8)"]
[WhiteTitle "IM"]
[BlackTitle "FM"]
[WhiteFideId "8703884"]
[BlackFideId "1704583"]
[WhiteElo "2420"]
[BlackElo "2106"]

1. d4 {[%clk 00:14:46]} {[%emt 00:00:21]} c5 {[%clk 00:15:07]} {[%emt
00:00:06]} 2. d5 {[%clk 00:14:42]} {[%emt 00:00:09]} f5 {[%emt 00:00:08]} 3. c4
{[%clk 00:13:23]} {[%emt 00:01:19]} Nf6 {[%clk 00:15:04]} {[%emt 00:00:10]} 4.
Nc3 {[%clk 00:13:25]} {[%emt 00:00:03]} g6 {[%clk 00:14:45]} {[%emt 00:00:24]}
5. g3 {[%clk 00:13:27]} {[%emt 00:00:03]} Bg7 {[%clk 00:14:43]} {[%emt
00:00:07]} 6. Bg2 {[%clk 00:13:31]} {[%emt 00:00:01]} d6 {[%clk 00:14:34]}
{[%emt 00:00:14]} 7. Nf3 {[%clk 00:13:14]} {[%emt 00:00:22]} Na6 {[%clk
00:14:11]} {[%emt 00:00:28]} 8. O-O {[%clk 00:13:14]} {[%emt 00:00:05]} O-O
{[%clk 00:14:08]} {[%emt 00:00:08]} 9. Re1 {[%clk 00:12:21]} {[%emt 00:00:59]}
Rb8 {[%clk 00:13:55]} {[%emt 00:00:17]} 10. h3 {[%clk 00:11:12]} {[%emt
00:01:15]} Nc7 {[%clk 00:13:39]} {[%emt 00:00:20]} 11. a4 {[%clk 00:11:15]}
{[%emt 00:00:02]} Na6 {[%clk 00:12:31]} {[%emt 00:01:14]} 12. e4 {[%clk
00:10:39]} {[%emt 00:00:40]} fxe4 {[%clk 00:11:33]} {[%emt 00:01:03]} 13. Nxe4
{[%clk 00:08:07]} {[%emt 00:02:36]} Nxe4 {[%clk 00:11:30]} {[%emt 00:00:09]} 14.
Rxe4 {[%clk 00:08:11]} {[%emt 00:00:02]} Bf5 {[%clk 00:11:13]} {[%emt
00:00:20]} 15. Re2 {[%clk 00:08:07]} {[%emt 00:00:09]} Nb4 {[%clk 00:11:05]}
{[%emt 00:00:14]} 16. Ra3 {[%clk 00:08:04]} {[%emt 00:00:09]} b6 {[%clk
00:10:07]} {[%emt 00:01:02]} 17. g4 {[%clk 00:05:56]} {[%emt 00:02:12]} Bc8
{[%clk 00:09:42]} {[%emt 00:00:31]} 18. Bg5 {[%clk 00:06:00]} {[%emt 00:00:01]}
Rb7 {[%clk 00:09:20]} {[%emt 00:00:27]} 19. Rae3 {[%clk 00:06:03]} {[%emt
00:00:01]} Rf7 {[%clk 00:08:40]} {[%emt 00:00:46]} 20. Qe1 {[%clk 00:05:52]}
{[%emt 00:00:16]} Bf8 {[%clk 00:08:29]} {[%emt 00:00:16]} 21. Bh4 {[%clk
00:05:56]} {[%emt 00:00:01]} h6 {[%clk 00:08:10]} {[%emt 00:00:24]} 22. Qb1
{[%clk 00:05:34]} {[%emt 00:00:27]} g5 {[%clk 00:07:01]} {[%emt 00:01:15]} 23.
Bg3 {[%clk 00:04:13]} {[%emt 00:01:25]} Rg7 {[%clk 00:06:45]} {[%emt 00:00:20]}
24. Ne1 {[%clk 00:03:52]} {[%emt 00:00:27]} a6 {[%clk 00:05:40]} {[%emt
00:01:11]} 25. f4 {[%clk 00:03:49]} {[%emt 00:00:07]} b5 {[%clk 00:05:20]}
{[%emt 00:00:25]} 26. fxg5 {[%clk 00:03:51]} {[%emt 00:00:04]} hxg5 {[%clk
00:05:21]} {[%emt 00:00:03]} 27. Rf2 {[%clk 00:03:34]} {[%emt 00:00:23]} bxa4
{[%clk 00:03:15]} {[%emt 00:02:11]} 28. Ref3 {[%clk 00:03:29]} {[%emt
00:00:09]} Bd7 {[%clk 00:02:55]} {[%emt 00:00:25]} 29. Rxf8+ {[%clk 00:03:31]}
{[%emt 00:00:04]} Qxf8 {[%clk 00:02:59]} {[%emt 00:00:01]} 30. Rxf8+ {[%clk
00:03:34]} {[%emt 00:00:01]} Kxf8 {[%clk 00:03:03]} {[%emt 00:00:01]} 31. Be4
{[%clk 00:03:24]} {[%emt 00:00:14]} Rf7 {[%clk 00:02:43]} {[%emt 00:00:25]} 32.
Nf3 {[%clk 00:03:25]} {[%emt 00:00:04]} Rg7 {[%clk 00:02:39]} {[%emt 00:00:10]}
33. Bf5 {[%clk 00:03:26]} {[%emt 00:00:03]} Be8 {[%clk 00:02:34]} {[%emt
00:00:11]} 34. h4 {[%clk 00:03:20]} {[%emt 00:00:10]} gxh4 {[%clk 00:02:25]}
{[%emt 00:00:15]} 35. Bf4 {[%clk 00:03:24]} Kg8 {[%clk 00:02:10]} {[%emt
00:00:21]} 36. Bh6 {[%clk 00:03:24]} {[%emt 00:00:04]} e5 {[%clk 00:01:39]}
{[%emt 00:00:36]} 37. Bxg7 {[%clk 00:03:21]} {[%emt 00:00:08]} Rxg7 {[%clk
00:01:43]} {[%emt 00:00:01]} 38. Be6+ {[%clk 00:03:22]} {[%emt 00:00:05]} Kh8
{[%clk 00:01:42]} {[%emt 00:00:05]} 39. Qf5 {[%clk 00:03:23]} {[%emt 00:00:04]}
Bg6 {[%clk 00:01:12]} {[%emt 00:00:36]} 40. Qf8+ {[%clk 00:03:25]} {[%emt
00:00:02]} Kh7 {[%clk 00:01:16]} {[%emt 00:00:01]} 41. Ng5+ {[%clk 00:03:28]}
{[%emt 00:00:02]} Kh6 {[%clk 00:01:19]} {[%emt 00:00:01]} 42. Qh8+ {[%clk
00:03:32]} {[%emt 00:00:02]} Kxg5 {[%clk 00:00:54]} {[%emt 00:00:30]} 43. Qxg7
{[%clk 00:03:35]} {[%emt 00:00:01]} Nd3 {[%clk 00:00:48]} {[%emt 00:00:12]} 44.
Bf5 {[%clk 00:03:35]} {[%emt 00:00:05]} Nf4 {[%clk 00:00:50]} {[%emt 00:00:03]}
45. Qe7+ {[%clk 00:03:37]} {[%emt 00:00:04]} Kh6 {[%clk 00:00:53]} {[%emt
00:00:02]} 46. Qxh4+ {[%clk 00:03:38]} {[%emt 00:00:03]} Kg7 {[%clk 00:00:57]}
47. Qe7+ {[%clk 00:03:41]} {[%emt 00:00:02]} Kh6 {[%clk 00:00:58]} {[%emt
00:00:04]} 48. Qxd6 {[%clk 00:03:45]} {[%emt 00:00:01]} 1-0

[Event "The Kvibergspelen 2024"]
[Site "Kviberg Park Hotel & Conference, Krutvagen 2, Gothenburg, Sweden"]
[Date "2024.09.06"]
[Round "3.3"]
[White "Lehtonen, Ture"]
[Black "Arman, Deniz"]
[Result "0-1"]
[TimeControl "15 minutes + 5 seconds per move from move one (Round 1 - 4) / 90 minutes + 30 seconds per move from move one (Round 5 - 8)"]
[BlackTitle "FM"]
[WhiteFideId "1712446"]
[BlackFideId "6302106"]
[WhiteElo "2099"]
[BlackElo "2348"]

1. b4 {[%clk 00:15:07]} {[%emt 00:00:02]} d5 {[%clk 00:13:18]} {[%emt
00:01:53]} 2. Bb2 {[%clk 00:15:10]} {[%emt 00:00:03]} Qd6 {[%clk 00:13:21]} 3.
a3 {[%clk 00:15:04]} {[%emt 00:00:11]} a5 {[%clk 00:13:23]} {[%emt 00:00:03]} 4.
b5 {[%clk 00:15:03]} {[%emt 00:00:06]} a4 {[%clk 00:13:16]} {[%emt 00:00:12]} 5.
Nf3 {[%clk 00:14:57]} {[%emt 00:00:11]} Nd7 {[%clk 00:13:18]} {[%emt 00:00:03]}
6. e3 {[%clk 00:14:52]} {[%emt 00:00:10]} e5 {[%clk 00:13:17]} {[%emt
00:00:06]} 7. c4 {[%clk 00:14:43]} {[%emt 00:00:13]} e4 {[%clk 00:11:29]}
{[%emt 00:01:54]} 8. Nd4 {[%clk 00:14:30]} {[%emt 00:00:18]} Nc5 {[%clk
00:11:32]} {[%emt 00:00:02]} 9. cxd5 {[%clk 00:14:15]} {[%emt 00:00:19]} Nf6
{[%clk 00:11:33]} {[%emt 00:00:05]} 10. Nc3 {[%clk 00:14:09]} {[%emt 00:00:11]}
Nxd5 {[%clk 00:11:14]} {[%emt 00:00:24]} 11. Nxd5 {[%clk 00:13:53]} {[%emt
00:00:20]} Qxd5 {[%clk 00:11:18]} {[%emt 00:00:02]} 12. Qc2 {[%clk 00:13:42]}
{[%emt 00:00:16]} Bd6 {[%clk 00:10:59]} {[%emt 00:00:23]} 13. f4 {[%clk
00:12:17]} {[%emt 00:01:30]} exf3 {[%clk 00:09:09]} {[%emt 00:01:56]} 14. gxf3
{[%clk 00:12:21]} {[%emt 00:00:01]} Qh5 {[%clk 00:04:33]} {[%emt 00:04:42]} 15.
O-O-O {[%clk 00:12:16]} {[%emt 00:00:08]} Nb3+ {[%clk 00:04:35]} {[%emt
00:00:04]} 16. Nxb3 {[%clk 00:12:07]} {[%emt 00:00:14]} axb3 {[%clk 00:04:38]}
{[%emt 00:00:02]} 17. Qxb3 {[%clk 00:11:53]} {[%emt 00:00:20]} Be6 {[%clk
00:04:41]} {[%emt 00:00:01]} 18. Qc3 {[%clk 00:11:31]} {[%emt 00:00:27]} Qd5
{[%clk 00:04:21]} {[%emt 00:00:24]} 19. d4 {[%clk 00:08:11]} {[%emt 00:03:25]}
Qxf3 {[%clk 00:03:51]} {[%emt 00:00:36]} 20. Rg1 {[%clk 00:08:08]} {[%emt
00:00:07]} Qf6 {[%clk 00:02:59]} {[%emt 00:00:57]} 21. Bg2 {[%clk 00:07:08]}
{[%emt 00:01:06]} Ra4 {[%clk 00:03:02]} {[%emt 00:00:03]} 22. d5 {[%clk
00:06:31]} {[%emt 00:00:42]} Qxc3+ {[%clk 00:03:01]} {[%emt 00:00:05]} 23. Bxc3
{[%clk 00:06:34]} {[%emt 00:00:02]} Bxa3+ {[%clk 00:02:54]} {[%emt 00:00:12]}
24. Kc2 {[%clk 00:06:31]} {[%emt 00:00:08]} Bd7 {[%clk 00:02:52]} {[%emt
00:00:07]} 25. Kb3 {[%clk 00:06:19]} {[%emt 00:00:17]} Bxb5 {[%clk 00:02:41]}
{[%emt 00:00:17]} 26. Ra1 {[%clk 00:06:06]} {[%emt 00:00:18]} Rg4 {[%clk
00:02:03]} {[%emt 00:00:42]} 27. Kxa3 {[%clk 00:06:01]} {[%emt 00:00:11]} f6
{[%clk 00:01:35]} {[%emt 00:00:33]} 28. Kb2 {[%clk 00:05:53]} {[%emt 00:00:13]}
O-O {[%clk 00:01:19]} {[%emt 00:00:20]} 29. Bh3 {[%clk 00:05:32]} {[%emt
00:00:26]} Rh4 {[%clk 00:01:20]} {[%emt 00:00:04]} 30. Be6+ {[%clk 00:05:35]}
{[%emt 00:00:02]} Kh8 {[%clk 00:01:24]} {[%emt 00:00:01]} 31. Rg2 {[%clk
00:05:34]} {[%emt 00:00:06]} Bd3 {[%clk 00:01:00]} {[%emt 00:00:29]} 32. Ra7
{[%clk 00:05:18]} {[%emt 00:00:21]} Ba6 {[%clk 00:00:57]} {[%emt 00:00:08]} 33.
Be1 {[%clk 00:04:49]} {[%emt 00:00:35]} Re4 {[%clk 00:00:52]} {[%emt 00:00:08]}
34. Bg3 {[%clk 00:04:53]} {[%emt 00:00:02]} c6 {[%clk 00:00:21]} {[%emt
00:00:37]} 35. Bf5 {[%clk 00:04:35]} {[%emt 00:00:23]} Rb4+ {[%clk 00:00:25]}
{[%emt 00:00:01]} 36. Ka3 {[%clk 00:04:39]} {[%emt 00:00:01]} Rb5 {[%clk
00:00:29]} {[%emt 00:00:01]} 37. dxc6 {[%clk 00:04:04]} {[%emt 00:00:40]} Ra5+
{[%clk 00:00:17]} {[%emt 00:00:17]} 38. Kb4 {[%clk 00:04:03]} {[%emt 00:00:06]}
Rxf5 {[%clk 00:00:20]} {[%emt 00:00:01]} 39. cxb7 {[%clk 00:03:42]} {[%emt
00:00:26]} Rb5+ {[%clk 00:00:24]} {[%emt 00:00:01]} 40. Ka4 {[%clk 00:03:41]}
{[%emt 00:00:07]} Bxb7 {[%clk 00:00:27]} 41. Rg1 {[%clk 00:03:13]} {[%emt
00:00:33]} Bc6 {[%clk 00:00:28]} {[%emt 00:00:04]} 42. Ka3 {[%clk 00:03:13]}
{[%emt 00:00:06]} Re8 {[%clk 00:00:26]} {[%emt 00:00:06]} 43. Re1 {[%clk
00:03:04]} {[%emt 00:00:14]} g5 {[%clk 00:00:24]} {[%emt 00:00:07]} 44. h4
{[%clk 00:02:57]} {[%emt 00:00:12]} Kg8 {[%clk 00:00:16]} {[%emt 00:00:13]} 45.
h5 {[%clk 00:02:38]} {[%emt 00:00:24]} h6 {[%clk 00:00:20]} {[%emt 00:00:01]}
46. Re2 {[%clk 00:02:28]} {[%emt 00:00:15]} f5 {[%clk 00:00:24]} {[%emt
00:00:01]} 47. Bd6 {[%clk 00:02:26]} {[%emt 00:00:08]} f4 {[%clk 00:00:26]}
{[%emt 00:00:02]} 48. Bb4 {[%clk 00:02:09]} {[%emt 00:00:21]} Re4 {[%clk
00:00:20]} {[%emt 00:00:11]} 49. Rd2 {[%clk 00:02:03]} {[%emt 00:00:10]} Rbxb4
{[%clk 00:00:17]} {[%emt 00:00:09]} 50. Rd8+ {[%clk 00:02:05]} {[%emt
00:00:03]} Be8 {[%clk 00:00:18]} {[%emt 00:00:04]} 51. Rxe8+ {[%clk 00:02:03]}
{[%emt 00:00:06]} Rxe8 {[%clk 00:00:22]} {[%emt 00:00:03]} 52. Kxb4 {[%clk
00:02:07]} Rxe3 {[%clk 00:00:20]} {[%emt 00:00:06]} 0-1

[Event "The Kvibergspelen 2024"]
[Site "Kviberg Park Hotel & Conference, Krutvagen 2, Gothenburg, Sweden"]
[Date "2024.09.06"]
[Round "3.4"]
[White "Lindberg, Bengt"]
[Black "Krilovs, Nikolajs"]
[Result "1/2-1/2"]
[TimeControl "15 minutes + 5 seconds per move from move one (Round 1 - 4) / 90 minutes + 30 seconds per move from move one (Round 5 - 8)"]
[WhiteTitle "IM"]
[WhiteFideId "1700359"]
[BlackFideId "11603100"]
[WhiteElo "2337"]
[BlackElo "2054"]

1. e4 {[%clk 00:15:07]} {[%emt 00:00:03]} c5 {[%clk 00:15:05]} {[%emt
00:00:06]} 2. Nf3 {[%clk 00:15:08]} {[%emt 00:00:03]} d6 {[%clk 00:15:06]}
{[%emt 00:00:04]} 3. d4 {[%clk 00:15:10]} {[%emt 00:00:03]} cxd4 {[%clk
00:15:08]} {[%emt 00:00:04]} 4. Nxd4 {[%clk 00:15:12]} {[%emt 00:00:03]} Nf6
{[%clk 00:14:54]} {[%emt 00:00:17]} 5. Nc3 {[%clk 00:15:15]} {[%emt 00:00:04]}
a6 {[%clk 00:13:50]} {[%emt 00:01:09]} 6. Be3 {[%clk 00:15:16]} {[%emt
00:00:03]} e5 {[%clk 00:13:31]} {[%emt 00:00:24]} 7. Nb3 {[%clk 00:15:19]}
{[%emt 00:00:02]} Nc6 {[%clk 00:13:09]} {[%emt 00:00:28]} 8. a4 {[%clk
00:13:56]} {[%emt 00:01:27]} Be6 {[%clk 00:11:54]} {[%emt 00:01:21]} 9. Nd5
{[%clk 00:13:12]} {[%emt 00:00:48]} Bxd5 {[%clk 00:11:26]} {[%emt 00:00:34]} 10.
exd5 {[%clk 00:13:14]} {[%emt 00:00:03]} Nb4 {[%clk 00:11:13]} {[%emt
00:00:18]} 11. c4 {[%clk 00:11:27]} {[%emt 00:01:51]} a5 {[%clk 00:10:54]}
{[%emt 00:00:25]} 12. c5 {[%clk 00:10:52]} {[%emt 00:00:40]} Be7 {[%clk
00:09:40]} {[%emt 00:01:19]} 13. Bb5+ {[%clk 00:10:05]} {[%emt 00:00:51]} Kf8
{[%clk 00:09:41]} {[%emt 00:00:04]} 14. c6 {[%clk 00:09:14]} {[%emt 00:00:56]}
Nfxd5 {[%clk 00:09:25]} {[%emt 00:00:21]} 15. cxb7 {[%clk 00:09:11]} {[%emt
00:00:09]} Nxe3 {[%clk 00:09:26]} {[%emt 00:00:03]} 16. fxe3 {[%clk 00:08:21]}
{[%emt 00:00:55]} Rb8 {[%clk 00:09:02]} {[%emt 00:00:29]} 17. O-O {[%clk
00:08:19]} {[%emt 00:00:07]} g6 {[%clk 00:06:41]} {[%emt 00:02:27]} 18. Qf3
{[%clk 00:07:24]} {[%emt 00:00:59]} f6 {[%clk 00:06:38]} {[%emt 00:00:08]} 19.
Rac1 {[%clk 00:06:01]} {[%emt 00:01:28]} Kg7 {[%clk 00:06:32]} {[%emt
00:00:11]} 20. Nd2 {[%clk 00:04:24]} {[%emt 00:01:42]} d5 {[%clk 00:05:07]}
{[%emt 00:01:31]} 21. e4 {[%clk 00:04:25]} {[%emt 00:00:03]} Qb6+ {[%clk
00:05:09]} {[%emt 00:00:02]} 22. Kh1 {[%clk 00:04:29]} {[%emt 00:00:02]} Qxb7
{[%clk 00:05:12]} {[%emt 00:00:03]} 23. exd5 {[%clk 00:04:29]} {[%emt
00:00:04]} Qxd5 {[%clk 00:04:57]} {[%emt 00:00:21]} 24. Rc7 {[%clk 00:04:17]}
{[%emt 00:00:16]} Qxf3 {[%clk 00:04:51]} {[%emt 00:00:12]} 25. Nxf3 {[%clk
00:04:16]} {[%emt 00:00:05]} Nd5 {[%clk 00:04:39]} {[%emt 00:00:17]} 26. Ra7
{[%clk 00:03:29]} {[%emt 00:00:52]} Ra8 {[%clk 00:04:11]} {[%emt 00:00:34]} 27.
Rb7 {[%clk 00:03:21]} {[%emt 00:00:12]} Rhb8 {[%clk 00:04:03]} {[%emt
00:00:13]} 28. Rd7 {[%clk 00:03:23]} {[%emt 00:00:03]} Rd8 {[%clk 00:03:49]}
{[%emt 00:00:20]} 29. Rb7 {[%clk 00:03:20]} {[%emt 00:00:07]} Rdb8 {[%clk
00:02:21]} {[%emt 00:01:34]} 30. Rd7 {[%clk 00:03:23]} {[%emt 00:00:01]} Rd8
{[%clk 00:02:23]} {[%emt 00:00:03]} 1/2-1/2

[Event "The Kvibergspelen 2024"]
[Site "Kviberg Park Hotel & Conference, Krutvagen 2, Gothenburg, Sweden"]
[Date "2024.09.06"]
[Round "3.5"]
[White "Wahlstrom, Lennart"]
[Black "Ostlund, Joar"]
[Result "1/2-1/2"]
[TimeControl "15 minutes + 5 seconds per move from move one (Round 1 - 4) / 90 minutes + 30 seconds per move from move one (Round 5 - 8)"]
[BlackTitle "FM"]
[WhiteFideId "1706829"]
[BlackFideId "1735020"]
[WhiteElo "2058"]
[BlackElo "2335"]

1. e4 {[%clk 00:15:07]} {[%emt 00:00:03]} e5 {[%clk 00:15:08]} {[%emt
00:00:02]} 2. Nf3 {[%clk 00:15:10]} {[%emt 00:00:02]} Nc6 {[%clk 00:15:07]}
{[%emt 00:00:07]} 3. d4 {[%clk 00:15:13]} {[%emt 00:00:01]} exd4 {[%clk
00:15:10]} {[%emt 00:00:03]} 4. Nxd4 {[%clk 00:15:17]} {[%emt 00:00:01]} Nf6
{[%clk 00:15:12]} {[%emt 00:00:03]} 5. Nxc6 {[%clk 00:15:20]} {[%emt 00:00:02]}
bxc6 {[%clk 00:15:15]} {[%emt 00:00:03]} 6. Bd3 {[%clk 00:15:23]} {[%emt
00:00:01]} d5 {[%clk 00:15:10]} {[%emt 00:00:11]} 7. exd5 {[%clk 00:15:26]}
{[%emt 00:00:01]} cxd5 {[%clk 00:15:09]} {[%emt 00:00:06]} 8. O-O {[%clk
00:15:27]} {[%emt 00:00:03]} Be7 {[%clk 00:15:01]} {[%emt 00:00:14]} 9. c4
{[%clk 00:15:27]} {[%emt 00:00:06]} d4 {[%clk 00:13:23]} {[%emt 00:01:42]} 10.
Nd2 {[%clk 00:15:24]} {[%emt 00:00:07]} O-O {[%clk 00:12:54]} {[%emt 00:00:34]}
11. Ne4 {[%clk 00:15:09]} {[%emt 00:00:21]} Bb7 {[%clk 00:11:34]} {[%emt
00:01:26]} 12. Nxf6+ {[%clk 00:14:37]} {[%emt 00:00:36]} Bxf6 {[%clk 00:11:33]}
{[%emt 00:00:05]} 13. Re1 {[%clk 00:14:13]} {[%emt 00:00:29]} g6 {[%clk
00:08:31]} {[%emt 00:03:08]} 14. Bf4 {[%clk 00:12:02]} {[%emt 00:02:16]} Qd7
{[%clk 00:07:41]} {[%emt 00:00:55]} 15. f3 {[%clk 00:08:32]} {[%emt 00:03:35]}
c5 {[%clk 00:06:55]} {[%emt 00:00:51]} 16. Qd2 {[%clk 00:08:28]} {[%emt
00:00:09]} Rfe8 {[%clk 00:05:28]} {[%emt 00:01:33]} 17. b3 {[%clk 00:07:51]}
{[%emt 00:00:41]} h5 {[%clk 00:05:20]} {[%emt 00:00:13]} 18. Rxe8+ {[%clk
00:04:31]} {[%emt 00:03:25]} Rxe8 {[%clk 00:05:19]} {[%emt 00:00:06]} 19. Re1
{[%clk 00:04:33]} {[%emt 00:00:03]} Kg7 {[%clk 00:01:14]} {[%emt 00:04:10]} 20.
Rxe8 {[%clk 00:04:04]} {[%emt 00:00:33]} Qxe8 {[%clk 00:01:18]} {[%emt
00:00:03]} 21. Qe2 {[%clk 00:04:02]} {[%emt 00:00:06]} Qd7 {[%clk 00:00:50]}
{[%emt 00:00:34]} 22. a3 {[%clk 00:02:59]} {[%emt 00:01:08]} Bc6 {[%clk
00:00:42]} {[%emt 00:00:13]} 23. b4 {[%clk 00:02:20]} {[%emt 00:00:43]} cxb4
{[%clk 00:00:38]} {[%emt 00:00:10]} 24. axb4 {[%clk 00:02:24]} {[%emt
00:00:02]} Bb7 {[%clk 00:00:13]} {[%emt 00:00:29]} 25. b5 {[%clk 00:02:12]}
{[%emt 00:00:16]} Qd8 {[%clk 00:00:08]} {[%emt 00:00:10]} 26. c5 {[%clk
00:01:43]} {[%emt 00:00:34]} Qa5 {[%clk 00:00:10]} {[%emt 00:00:04]} 27. c6
{[%clk 00:01:40]} {[%emt 00:00:08]} Bc8 {[%clk 00:00:13]} {[%emt 00:00:02]} 28.
Be5 {[%clk 00:00:57]} {[%emt 00:00:47]} Qa1+ {[%clk 00:00:07]} {[%emt
00:00:12]} 29. Kf2 {[%clk 00:01:00]} Qc1 {[%clk 00:00:06]} {[%emt 00:00:07]} 30.
Bxf6+ {[%clk 00:00:55]} {[%emt 00:00:10]} Kxf6 {[%clk 00:00:10]} {[%emt
00:00:01]} 31. Bc4 {[%clk 00:00:52]} {[%emt 00:00:07]} Be6 {[%clk 00:00:10]}
{[%emt 00:00:05]} 32. Bxe6 {[%clk 00:00:42]} {[%emt 00:00:15]} fxe6 {[%clk
00:00:14]} {[%emt 00:00:02]} 33. Qd3 {[%clk 00:00:33]} {[%emt 00:00:13]} Qb2+
{[%clk 00:00:08]} {[%emt 00:00:11]} 34. Qe2 {[%clk 00:00:31]} {[%emt 00:00:07]}
Qc3 {[%clk 00:00:11]} {[%emt 00:00:03]} 35. f4 {[%clk 00:00:31]} {[%emt
00:00:05]} Ke7 {[%clk 00:00:09]} {[%emt 00:00:08]} 36. Qe5 {[%clk 00:00:27]}
{[%emt 00:00:08]} Qc2+ {[%clk 00:00:08]} {[%emt 00:00:06]} 37. Kg3 {[%clk
00:00:30]} d3 {[%clk 00:00:08]} {[%emt 00:00:05]} 38. Qg7+ {[%clk 00:00:28]}
{[%emt 00:00:07]} Kd6 {[%clk 00:00:08]} {[%emt 00:00:06]} 39. Qd4+ {[%clk
00:00:30]} {[%emt 00:00:02]} Ke7 {[%clk 00:00:11]} {[%emt 00:00:03]} 40. Qg7+
{[%clk 00:00:33]} {[%emt 00:00:02]} Kd6 {[%clk 00:00:15]} {[%emt 00:00:01]} 41.
Qd4+ {[%clk 00:00:36]} 1/2-1/2